bitfinex/quotes_BTCUSD_20250308
["timestamp","ask_amount","ask_price","bid_price","bid_amount"]
[1741446871864,1.54249696,86605.0,86604.0,1.71226293]
[1741446872574,0.79486396,86605.0,86604.0,1.67752993]
[1741446872775,0.25526696,86605.0,86604.0,1.67776264]
[1741446872950,9.6e-07,86605.0,86604.0,1.67776264]
[1741446873777,9.6e-07,86605.0,86604.0,1.67476264]
[1741446873979,9.6e-07,86605.0,86604.0,1.67776264]
[1741446874192,0.0789,86648.0,86620.0,0.01454085]
[1741446874412,0.0789,86648.0,86622.0,0.55697285]
[1741446874612,0.09044,86648.0,86622.0,0.55697285]
[1741446875022,0.09044,86648.0,86622.0,0.57158261]
[1741446875426,0.011541,86647.0,86622.0,0.57158261]
[1741446875838,0.011541,86646.0,86622.0,0.57158261]
[1741446877500,0.011541,86645.0,86622.0,0.57458261]
[1741446878860,0.011541,86644.0,86622.0,0.57458261]
[1741446879036,0.011541,86644.0,86622.0,1.11968261]
[1741446879715,0.011541,86644.0,86622.0,1.12168261]
[1741446881805,0.01827616,86623.0,86622.0,1.12168261]
[1741446883096,0.01827616,86623.0,86622.0,0.87925061]
[1741446883471,0.01827616,86623.0,86622.0,1.00475461]
[1741446885972,0.01827616,86623.0,86622.0,1.15291461]
[1741446890900,0.01827616,86623.0,86622.0,0.60781461]
[1741446891699,0.01827616,86623.0,86622.0,0.59323376]
[1741446891914,0.01827616,86623.0,86622.0,0.60193226]
[1741446895016,0.01827616,86623.0,86622.0,0.67803226]
[1741446900243,0.01827616,86623.0,86622.0,0.48801226]
[1741446900455,0.01827616,86623.0,86622.0,0.60193226]
[1741446901300,0.01827616,86623.0,86622.0,0.59893226]
[1741446901496,0.01827616,86623.0,86622.0,0.60474126]
[1741446901691,0.01827616,86623.0,86622.0,0.60774126]
[1741446902118,0.01827616,86623.0,86622.0,0.68474126]
[1741446902548,0.01827616,86623.0,86622.0,0.60774126]
[1741446902746,0.01827616,86623.0,86622.0,0.60401447]
[1741446908172,0.01827616,86623.0,86622.0,0.65351447]
[1741446909000,0.01827616,86623.0,86622.0,0.75851447]
[1741446909351,0.0001698,86623.0,86622.0,0.75851447]
[1741446911066,0.0001698,86623.0,86622.0,0.75352951]
[1741446913665,0.00055553,86623.0,86622.0,0.75352951]
[1741446914650,0.00055553,86623.0,86622.0,0.77852951]
[1741446915605,5.3e-07,86623.0,86622.0,0.77852951]
[1741446915820,5.3e-07,86623.0,86622.0,0.81512055]
[1741446917374,5.3e-07,86623.0,86622.0,0.81012055]
[1741446917575,5.3e-07,86623.0,86622.0,0.81212055]
[1741446917775,5.3e-07,86623.0,86622.0,0.81512055]
[1741446918100,0.00017043,86623.0,86622.0,0.81512055]
[1741446918375,0.2878,86670.0,86658.0,0.011539]
[1741446918607,0.230771,86666.0,86659.0,0.11388]
[1741446918789,0.230771,86666.0,86659.0,0.12466684]
[1741446918923,0.01810124,86665.0,86659.0,0.12466684]
[1741446919884,0.011538,86664.0,86659.0,0.12466684]
[1741446922430,0.01810124,86665.0,86660.0,0.011539]
[1741446922780,8.018e-05,86667.0,86666.0,0.011538]
[1741446923136,8.018e-05,86667.0,86666.0,0.02229164]
[1741446923621,8.018e-05,86667.0,86666.0,0.02275277]
[1741446923855,8.018e-05,86667.0,86666.0,0.01121477]
[1741446924098,8.018e-05,86667.0,86666.0,0.01075364]
[1741446924335,8.018e-05,86667.0,86664.0,0.011538]
[1741446924572,8.018e-05,86667.0,86665.0,0.01075364]
[1741446925015,8.018e-05,86667.0,86666.0,0.01654085]
[1741446925271,8.018e-05,86667.0,86666.0,0.02653998]
[1741446925494,8.018e-05,86667.0,86666.0,0.03836625]
[1741446925993,0.01817769,86667.0,86666.0,0.03836625]
[1741446926125,0.01817769,86667.0,86666.0,0.03721257]
[1741446927921,0.01817769,86667.0,86666.0,0.03921257]
[1741446928142,0.01817769,86667.0,86666.0,0.04121257]
[1741446929747,0.01834759,86667.0,86666.0,0.04121257]
[1741446932088,0.01834759,86667.0,86666.0,0.04413134]
[1741446933039,0.01834759,86667.0,86666.0,0.04367021]
[1741446933408,0.01834759,86667.0,86666.0,0.03213221]
[1741446933555,0.01834759,86667.0,86666.0,0.04367021]
[1741446934448,0.01834759,86667.0,86666.0,0.03213221]
[1741446935080,0.01834759,86667.0,86666.0,0.13139136]
[1741446935331,0.01834759,86667.0,86666.0,0.15747021]
[1741446937847,0.01834759,86667.0,86666.0,0.14593221]
[1741446938052,0.01834759,86667.0,86666.0,0.15747021]
[1741446938825,0.01834759,86667.0,86666.0,0.15775113]
[1741446939031,0.01834759,86667.0,86666.0,0.15747021]
[1741446940886,0.01834759,86667.0,86666.0,0.45747021]
[1741446941706,0.01834759,86667.0,86666.0,0.54052267]
[1741446941883,0.01834759,86667.0,86666.0,0.58957021]
[1741446941884,0.00025008,86667.0,86666.0,0.58957021]
[1741446942080,0.00025008,86667.0,86666.0,0.61494139]
[1741446942858,0.00025008,86667.0,86666.0,0.61328099]
[1741446943847,0.00025008,86667.0,86666.0,0.63790981]
[1741446944209,0.00025008,86667.0,86666.0,0.64016258]
[1741446944367,0.00025008,86667.0,86666.0,0.63990981]
[1741446944563,0.00025008,86667.0,86666.0,0.63790981]
[1741446944969,0.00025008,86667.0,86666.0,0.64090981]
[1741446945518,0.00025008,86667.0,86666.0,0.63890981]
[1741446945727,0.00025008,86667.0,86666.0,0.61415015]
[1741446945979,0.00025008,86667.0,86666.0,0.61615015]
[1741446946284,0.00025008,86667.0,86666.0,0.61614418]
[1741446947022,0.00025008,86667.0,86666.0,0.61590981]
[1741446950824,0.01834579,86667.0,86666.0,0.64090981]
[1741446955417,0.001,86669.0,86668.0,0.488038]
[1741446955593,0.001,86669.0,86668.0,0.51609964]
[1741446955796,0.00495,86673.0,86672.0,0.718792]
[1741446956004,0.00495,86673.0,86672.0,0.73333285]
[1741446956219,0.00495,86673.0,86672.0,0.74685364]
[1741446958060,0.00495,86673.0,86672.0,0.78285186]
[1741446958486,0.00495,86673.0,86672.0,0.78585186]
[1741446958694,0.00495,86673.0,86672.0,0.74985364]
[1741446959032,0.00495,86673.0,86672.0,0.78584486]
[1741446959662,0.00495,86673.0,86672.0,0.74985364]
[1741446959867,1e-06,86673.0,86672.0,0.74985364]
[1741446960074,1e-06,86673.0,86672.0,0.78584068]
[1741446960247,1e-06,86673.0,86672.0,0.80937136]
[1741446960946,1e-06,86673.0,86672.0,0.78137136]
[1741446961154,1e-06,86673.0,86672.0,0.77338432]
[1741446961358,1e-06,86673.0,86672.0,0.74838432]
[1741446961549,1e-06,86673.0,86672.0,0.74538432]
[1741446961734,1e-06,86673.0,86672.0,0.78127474]
[1741446961872,1e-06,86673.0,86672.0,0.78427474]
[1741446962509,1e-06,86673.0,86672.0,0.78227474]
[1741446962902,1e-06,86673.0,86672.0,0.78427474]
[1741446963519,1e-06,86673.0,86672.0,0.89799474]
[1741446964558,1e-06,86673.0,86672.0,0.89299474]
[1741446964758,1e-06,86673.0,86672.0,0.89344512]
[1741446965017,1e-06,86673.0,86672.0,0.89644512]
[1741446965430,0.230652,86711.0,86703.0,0.3]
[1741446965584,0.011533,86707.0,86704.0,0.2618]
[1741446965792,0.242197,86706.0,86705.0,0.11372]
[1741446965992,0.011533,86706.0,86705.0,0.13052192]
[1741446966970,0.242197,86706.0,86705.0,0.01680192]
[1741446967382,0.242197,86706.0,86705.0,0.01880192]
[1741446967588,0.26028831,86706.0,86705.0,0.01880192]
[1741446967763,0.26028831,86706.0,86705.0,0.005]
[1741446967999,0.26028831,86706.0,86705.0,0.007]
[1741446968205,0.26028831,86706.0,86705.0,0.004]
[1741446968417,0.35068831,86706.0,86705.0,0.004]
[1741446970296,0.072335,86692.0,86687.0,0.00046113]
[1741446970498,0.072335,86692.0,86686.0,0.11368]
[1741446970623,0.011535,86689.0,86688.0,0.01683953]
[1741446970831,0.011535,86689.0,86686.0,0.11368]
[1741446971028,0.011535,86687.0,86686.0,0.11368]
[1741446971415,0.24225,86687.0,86686.0,0.11368]
[1741446971843,0.011535,86686.0,86685.0,0.14804]
[1741446972065,0.072335,86686.0,86685.0,0.14804]
[1741446972984,0.01809454,86689.0,86685.0,0.159576]
[1741446973387,0.01809454,86689.0,86686.0,0.003]
[1741446973589,0.02962954,86689.0,86686.0,0.003]
[1741446973799,0.011535,86686.0,86685.0,0.14804]
[1741446974245,0.011535,86686.0,86685.0,0.15104]
[1741446974751,0.011535,86686.0,86685.0,0.14804]
[1741446974879,0.01809454,86689.0,86685.0,0.14804]
[1741446975084,0.01809454,86689.0,86687.0,0.002]
[1741446975302,0.02962954,86689.0,86687.0,0.002]
[1741446975532,0.011535,86688.0,86685.0,0.14804]
[1741446975931,0.011535,86688.0,86686.0,0.01686709]
[1741446975932,0.242249,86688.0,86686.0,0.01686709]
[1741446976110,0.011535,86687.0,86686.0,0.01686709]
[1741446978194,0.011535,86687.0,86686.0,0.01986709]
[1741446979079,0.0117048,86687.0,86686.0,0.02548945]
[1741446979755,0.0117048,86687.0,86686.0,0.02748945]
[1741446987471,0.0117048,86687.0,86686.0,0.005]
[1741446991117,0.0117048,86687.0,86686.0,0.0053394]
[1741446991322,0.0117048,86687.0,86686.0,0.02787956]
[1741446991950,0.0117048,86687.0,86686.0,0.0053394]
[1741446993797,0.1021048,86687.0,86686.0,0.0053394]
[1741446994767,0.1021048,86687.0,86686.0,0.0033394]
[1741446995557,0.1021048,86687.0,86686.0,0.0003394]
[1741446995880,0.1021048,86687.0,86686.0,0.0023394]
[1741446996996,0.1021048,86687.0,86686.0,0.0033394]
[1741446998776,0.12020168,86687.0,86686.0,0.0033394]
[1741447000602,0.02980168,86687.0,86686.0,0.0033394]
[1741447003164,0.01826668,86687.0,86686.0,0.0033394]
[1741447003369,0.01826668,86687.0,86686.0,0.0492394]
[1741447003571,0.01826668,86687.0,86686.0,0.0718446]
[1741447004669,0.02980168,86687.0,86686.0,0.0718446]
[1741447004897,0.02980168,86687.0,86686.0,0.0492394]
[1741447005209,0.26051668,86687.0,86686.0,0.0482394]
[1741447005427,0.26051668,86687.0,86686.0,0.0013394]
[1741447006019,0.26051668,86687.0,86686.0,0.0033394]
[1741447006566,0.32131668,86687.0,86686.0,0.0033394]
[1741447006768,0.3032198,86687.0,86686.0,0.0033394]
[1741447007216,0.3032198,86687.0,86686.0,4e-07]
[1741447008826,0.011537,86673.0,86672.0,0.0003396]
[1741447009885,0.02963768,86673.0,86672.0,0.0003396]
[1741447011636,0.03063768,86673.0,86672.0,0.0003396]
[1741447012256,0.04276852,86673.0,86672.0,0.0003396]
[1741447012470,0.04476852,86673.0,86672.0,0.0003396]
[1741447013100,0.02666784,86673.0,86672.0,0.0003396]
[1741447013859,0.02766784,86673.0,86672.0,0.0003396]
[1741447015736,0.10634536,86675.0,86672.0,0.0003396]
[1741447015929,0.011537,86673.0,86672.0,0.0003396]
[1741447017878,0.02963723,86673.0,86672.0,0.0003396]
[1741447018225,0.02963723,86673.0,86672.0,0.02303058]
[1741447018419,0.03063723,86673.0,86672.0,0.0003396]
[1741447018626,0.03063723,86673.0,86672.0,0.02303058]
[1741447018856,0.03063723,86673.0,86672.0,0.0003396]
[1741447019057,0.03063723,86673.0,86672.0,0.02303058]
[1741447019243,0.03063723,86673.0,86672.0,0.0003396]
[1741447019450,0.03063723,86673.0,86672.0,0.02303058]
[1741447019652,0.03263723,86673.0,86672.0,0.0003396]
[1741447019838,0.03263723,86673.0,86672.0,0.02303058]
[1741447020065,0.03263723,86673.0,86672.0,0.0003396]
[1741447020278,0.03263723,86673.0,86672.0,0.02303058]
[1741447020480,0.03263723,86673.0,86672.0,0.0003396]
[1741447020686,0.26338923,86673.0,86672.0,0.0003396]
[1741447020895,0.26338923,86673.0,86672.0,0.02303058]
[1741447021741,0.26338923,86673.0,86672.0,0.0003396]
[1741447021948,0.26338923,86673.0,86672.0,6e-07]
[1741447022489,0.245289,86673.0,86672.0,6e-07]
[1741447023218,0.26883446,86673.0,86672.0,6e-07]
[1741447023808,0.26883446,86673.0,86666.0,2e-07]
[1741447023809,0.242306,86667.0,86666.0,2e-07]
[1741447026012,0.244306,86667.0,86666.0,2e-07]
[1741447026981,0.244306,86667.0,86643.0,0.11368]
[1741447026982,0.242365,86646.0,86643.0,0.11368]
[1741447027186,0.242365,86646.0,86645.0,0.14820018]
[1741447027381,0.242365,86646.0,86645.0,0.02280887]
[1741447027755,0.242365,86646.0,86645.0,0.00470556]
[1741447027938,0.242365,86646.0,86645.0,0.01972483]
[1741447028137,0.011542,86639.0,86638.0,0.0767]
[1741447028337,0.011542,86639.0,86638.0,0.19038]
[1741447028576,0.011542,86639.0,86638.0,0.21010483]
[1741447028800,0.011542,86639.0,86638.0,0.01972483]
[1741447029132,0.242412,86629.0,86628.0,0.14816]
[1741447029343,0.011544,86623.0,86622.0,0.0003398]
[1741447029766,0.242429,86623.0,86622.0,0.0003398]
[1741447030159,0.26053597,86623.0,86622.0,0.0003398]
[1741447030562,0.27322652,86623.0,86622.0,0.0003398]
[1741447031066,0.02965097,86623.0,86622.0,0.0003398]
[1741447031266,0.02812221,86623.0,86622.0,0.0003398]
[1741447032225,0.01810697,86623.0,86622.0,0.0043398]
[1741447032401,0.01810697,86623.0,86622.0,0.1454838]
[1741447032630,0.01810697,86623.0,86622.0,0.1299398]
[1741447032824,0.01810697,86623.0,86622.0,0.1319398]
[1741447033025,0.01810697,86623.0,86622.0,0.1474838]
[1741447033232,0.01810697,86623.0,86622.0,0.1359398]
[1741447033630,0.01810697,86623.0,86622.0,0.1474838]
[1741447033819,0.011542,86635.0,86627.0,0.242417]
[1741447034018,0.0296,86667.0,86638.0,0.230845]
[1741447034019,0.02461818,86647.0,86638.0,0.230845]
[1741447034215,0.011541,86647.0,86641.0,0.242378]
[1741447034426,0.01165654,86646.0,86640.0,0.0478]
[1741447034631,0.011541,86641.0,86640.0,0.0478]
[1741447035747,0.011541,86641.0,86640.0,0.0488]
[1741447036980,0.011541,86641.0,86640.0,0.001]
[1741447037827,0.011541,86644.0,86640.0,0.11468]
[1741447038236,0.011541,86642.0,86641.0,0.0199155]
[1741447038648,0.011541,86641.0,86640.0,0.11468]
[1741447038987,0.011541,86641.0,86640.0,0.11368]
[1741447039311,0.011541,86641.0,86640.0,0.13391573]
[1741447039519,0.02964595,86644.0,86640.0,0.13391573]
[1741447039723,0.011541,86641.0,86640.0,0.13391573]
[1741447041111,0.242378,86641.0,86640.0,0.13391573]
[1741447041944,0.242378,86641.0,86640.0,0.1140198]
[1741447042174,0.01910495,86644.0,86642.0,0.011541]
[1741447042361,0.01910495,86644.0,86641.0,0.083]
[1741447042505,0.01810495,86644.0,86643.0,0.01989593]
[1741447042704,0.01810495,86644.0,86641.0,0.083]
[1741447042905,0.24893395,86644.0,86642.0,0.01989593]
[1741447043132,0.24893395,86644.0,86641.0,0.083]
[1741447043335,0.26047495,86644.0,86643.0,0.01989593]
[1741447043547,0.26147495,86644.0,86641.0,0.083]
[1741447043703,0.26147495,86644.0,86643.0,0.01984695]
[1741447043905,0.26147495,86644.0,86641.0,0.083]
[1741447044112,0.26147495,86644.0,86642.0,0.01984695]
[1741447044354,0.26247495,86644.0,86641.0,0.083]
[1741447044564,0.26247495,86644.0,86643.0,0.01984695]
[1741447044778,0.26247495,86644.0,86641.0,0.083]
[1741447044973,0.26147495,86644.0,86643.0,0.01984695]
[1741447045113,0.02010495,86644.0,86643.0,0.230832]
[1741447045312,0.02010495,86644.0,86643.0,0.01984695]
[1741447045519,0.03164595,86644.0,86641.0,0.083]
[1741447045725,0.03164595,86644.0,86643.0,0.01984695]
[1741447045948,0.03164595,86644.0,86641.0,0.083]
[1741447046146,0.03164595,86644.0,86643.0,0.01984695]
[1741447046351,0.03064595,86644.0,86641.0,0.083]
[1741447046592,0.03064595,86644.0,86643.0,0.01984695]
[1741447046593,0.26047795,86644.0,86643.0,0.01984695]
[1741447046802,0.26147795,86644.0,86641.0,0.083]
[1741447047013,0.26247795,86644.0,86643.0,0.01984695]
[1741447047480,0.011541,86642.0,86641.0,0.083]
[1741447047715,0.03064598,86644.0,86641.0,0.083]
[1741447047914,0.03064598,86644.0,86642.0,0.01984695]
[1741447048228,0.24337,86644.0,86641.0,0.083]
[1741447048428,0.24437,86644.0,86643.0,0.01984695]
[1741447048626,0.011541,86643.0,86641.0,0.083]
[1741447049458,0.001,86644.0,86641.0,0.083]
[1741447049687,0.242359,86648.0,86641.0,0.325378]
[1741447050606,0.011541,86645.0,86641.0,0.083]
[1741447050840,0.011541,86642.0,86641.0,0.083]
[1741447051191,0.242375,86642.0,86641.0,0.083]
[1741447052392,0.26048004,86642.0,86641.0,0.083]
[1741447052588,0.26048004,86642.0,86641.0,0.19668]
[1741447053275,0.26048004,86642.0,86640.0,0.0003398]
[1741447053513,0.011541,86641.0,86640.0,0.0003398]
[1741447055730,0.011541,86641.0,86640.0,0.0013398]
[1741447062328,0.011541,86641.0,86640.0,0.0003398]
[1741447062734,0.014541,86641.0,86640.0,0.0003398]
[1741447063800,0.015541,86641.0,86640.0,0.0003398]
[1741447064044,0.012541,86641.0,86640.0,0.0003398]
[1741447064517,0.012541,86641.0,86640.0,0.0797398]
[1741447065654,0.013541,86641.0,86640.0,0.0003398]
[1741447065826,0.011541,86641.0,86640.0,0.0003398]
[1741447066259,0.011541,86641.0,86640.0,0.0013398]
[1741447067777,0.02964702,86641.0,86640.0,0.0013398]
[1741447068620,0.01810602,86641.0,86640.0,0.01327972]
[1741447068823,0.01810602,86641.0,86640.0,0.0922818]
[1741447069025,0.01810602,86641.0,86640.0,0.1943798]
[1741447069163,0.01810602,86641.0,86640.0,0.20631972]
[1741447070291,0.02964702,86641.0,86640.0,0.20631972]
[1741447071278,0.01810602,86641.0,86640.0,0.20631972]
[1741447072129,0.0607898,86648.0,86640.0,0.20631972]
[1741447072328,0.230825,86646.0,86640.0,0.20631972]
[1741447072509,0.011541,86644.0,86640.0,0.20631972]
[1741447073133,0.011541,86644.0,86640.0,0.20531972]
[1741447073487,0.011541,86645.0,86640.0,0.20531972]
[1741447073751,0.011541,86646.0,86640.0,0.44770172]
[1741447073926,0.011541,86647.0,86642.0,0.045]
[1741447074394,0.011541,86646.0,86643.0,0.01193992]
[1741447074794,0.011541,86646.0,86642.0,0.045]
[1741447075008,0.011541,86646.0,86644.0,0.01193992]
[1741447075238,0.011541,86645.0,86644.0,0.01193992]
[1741447075449,0.011541,86645.0,86644.0,0.00993992]
[1741447075839,0.011541,86643.0,86642.0,0.045]
[1741447077008,0.012541,86645.0,86642.0,0.045]
[1741447077649,0.001,86645.0,86642.0,0.045]
[1741447078367,0.011541,86644.0,86642.0,0.045]
[1741447078568,0.011541,86643.0,86642.0,0.045]
[1741447078768,0.242373,86643.0,86642.0,0.045]
[1741447079333,0.230827,86645.0,86642.0,0.045]
[1741447079629,0.01810498,86646.0,86642.0,0.045]
[1741447080345,0.01810498,86646.0,86643.0,0.230832]
[1741447080558,0.011539,86658.0,86647.0,0.011541]
[1741447080768,0.01154,86654.0,86647.0,0.01184502]
[1741447081329,0.011539,86657.0,86647.0,0.01184502]
[1741447081540,0.0001699,86673.0,86647.0,0.45053577]
[1741447081749,0.0001699,86673.0,86647.0,0.44980779]
[1741447081961,0.0001699,86673.0,86672.0,0.242292]
[1741447082179,0.0001699,86673.0,86672.0,0.79377285]
[1741447082389,0.00028553,86673.0,86672.0,0.79377285]
[1741447083012,0.00028553,86673.0,86672.0,0.8044332]
[1741447083676,0.0001697,86712.0,86686.0,0.38009285]
[1741447083893,0.0001697,86712.0,86686.0,0.79369285]
[1741447084101,0.0117017,86712.0,86686.0,0.80522876]
[1741447084282,0.0001697,86712.0,86686.0,0.80522876]
[1741447084495,0.0117017,86712.0,86686.0,0.80522876]
[1741447084646,0.0001697,86712.0,86686.0,0.80522876]
[1741447085477,0.0001697,86712.0,86711.0,0.011532]
[1741447085678,0.00055529,86712.0,86711.0,0.248432]
[1741447085886,0.00055529,86712.0,86711.0,0.2599668]
[1741447088288,0.01864604,86712.0,86711.0,0.2599668]
[1741447088986,0.02064604,86712.0,86711.0,0.2599668]
[1741447091127,0.02064604,86712.0,86711.0,0.1348348]
[1741447091391,0.03217804,86712.0,86711.0,0.0115348]
[1741447091810,0.02064604,86712.0,86706.0,0.11356]
[1741447092021,0.011533,86707.0,86706.0,0.11356]
[1741447094204,0.242205,86703.0,86702.0,0.14816]
[1741447094610,0.242205,86703.0,86688.0,0.0463]
[1741447094611,0.242227,86695.0,86694.0,0.11356]
[1741447095110,0.26032035,86695.0,86694.0,0.11356]
[1741447095497,0.242227,86695.0,86694.0,0.11356]
[1741447095896,0.242247,86688.0,86687.0,0.11356]
[1741447096237,0.242247,86688.0,86687.0,0.12507283]
[1741447096677,0.011535,86688.0,86687.0,0.12507283]
[1741447097054,0.011534,86693.0,86687.0,0.12507283]
[1741447097260,0.011535,86689.0,86687.0,0.12807283]
[1741447097833,0.011534,86695.0,86687.0,0.12807283]
[1741447097834,0.011534,86698.0,86687.0,0.13007283]
[1741447098044,0.230653,86711.0,86700.0,0.011534]
[1741447098045,0.011533,86707.0,86700.0,0.011534]
[1741447098221,0.011532,86713.0,86702.0,0.011533]
[1741447098569,0.01809208,86706.0,86703.0,0.25373082]
[1741447098954,0.00055529,86712.0,86711.0,0.242183]
[1741447099131,0.00055529,86712.0,86711.0,0.355743]
[1741447099335,0.00055529,86712.0,86711.0,0.36725467]
[1741447099538,0.00355529,86712.0,86711.0,0.36725467]
[1741447100167,0.00055529,86712.0,86711.0,0.36725467]
[1741447100420,0.00055529,86712.0,86711.0,0.37125467]
[1741447102154,0.00055529,86712.0,86711.0,0.01151167]
[1741447102359,0.24273529,86712.0,86711.0,0.11352]
[1741447102583,0.24273529,86712.0,86711.0,0.01446782]
[1741447103204,0.26082681,86712.0,86711.0,0.01146782]
[1741447103444,0.24273529,86712.0,86711.0,0.01146782]
[1741447103659,0.230643,86714.0,86711.0,0.001]
[1741447103878,0.230648,86712.0,86711.0,0.001]
[1741447104462,0.24218,86712.0,86711.0,0.001]
[1741447104686,0.011532,86712.0,86711.0,0.001]
[1741447105109,0.011532,86713.0,86704.0,0.011533]
[1741447105480,0.011533,86706.0,86705.0,0.01146782]
[1741447105841,0.011534,86695.0,86684.0,0.242256]
[1741447105976,0.011535,86692.0,86688.0,0.11398113]
[1741447106188,0.011534,86695.0,86688.0,0.12498782]
[1741447106482,0.011535,86692.0,86688.0,0.12498782]
[1741447106811,0.011535,86689.0,86688.0,0.12498782]
[1741447107617,0.02962919,86689.0,86688.0,0.12498782]
[1741447107815,0.01809419,86689.0,86688.0,0.12498782]
[1741447108016,0.01809419,86689.0,86688.0,0.13652282]
[1741447108450,0.01809419,86689.0,86688.0,0.12498782]
[1741447108577,0.02962919,86689.0,86688.0,0.12698782]
[1741447108777,0.02962919,86689.0,86688.0,0.01346782]
[1741447108987,0.02962919,86689.0,86688.0,0.12698782]
[1741447109227,0.011535,86689.0,86688.0,0.12498782]
[1741447109540,0.011535,86689.0,86688.0,0.11752]
[1741447109944,0.011535,86689.0,86688.0,0.11552]
[1741447110400,0.011535,86689.0,86688.0,0.11652]
[1741447110778,0.011535,86689.0,86688.0,0.11852]
[1741447110979,0.011535,86692.0,86688.0,0.11852]
[1741447111133,0.011535,86692.0,86688.0,0.13001468]
[1741447111734,0.011535,86689.0,86688.0,0.13001468]
[1741447111935,0.011535,86689.0,86688.0,0.12701468]
[1741447112375,0.011535,86689.0,86688.0,0.13001468]
[1741447112577,0.02962939,86689.0,86688.0,0.13001468]
[1741447113356,0.01809439,86689.0,86688.0,0.13001468]
[1741447113563,0.01809439,86689.0,86688.0,0.14154968]
[1741447114183,0.01809439,86689.0,86688.0,0.21734968]
[1741447114384,0.01809439,86689.0,86688.0,0.26564968]
[1741447114607,0.01809439,86689.0,86688.0,0.26664968]
[1741447114824,0.0001699,86695.0,86688.0,0.26664968]
[1741447114825,0.0001699,86695.0,86694.0,0.011534]
[1741447115128,0.0001699,86695.0,86694.0,0.24223]
[1741447115425,0.0001699,86695.0,86694.0,0.25373672]
[1741447118511,0.0117039,86695.0,86694.0,0.01150672]
[1741447118718,0.0117039,86695.0,86694.0,0.004]
[1741447118957,0.0001699,86695.0,86694.0,0.004]
[1741447119136,0.0001699,86695.0,86694.0,0.01551494]
[1741447119396,0.0001699,86695.0,86694.0,0.01151494]
[1741447119610,0.0117039,86695.0,86694.0,0.01151494]
[1741447119903,0.242244,86689.0,86687.0,0.0003398]
[1741447120105,0.011535,86688.0,86687.0,0.0003398]
[1741447120283,0.230709,86689.0,86688.0,0.01151636]
[1741447120457,0.011535,86689.0,86687.0,0.0003398]
[1741447121063,0.011535,86691.0,86687.0,0.0003398]
[1741447121272,0.011535,86691.0,86687.0,0.00072539]
[1741447121505,0.011535,86688.0,86687.0,0.00072539]
[1741447122136,0.011535,86691.0,86687.0,0.00072539]
[1741447122362,0.01809559,86688.0,86687.0,0.00072539]
[1741447122567,0.01809559,86688.0,86687.0,0.00272539]
[1741447122969,0.02963059,86688.0,86687.0,0.00272539]
[1741447123198,0.01809559,86688.0,86687.0,0.00072539]
[1741447123399,0.01809559,86688.0,86687.0,0.00272539]
[1741447123606,0.01809559,86688.0,86687.0,0.01424256]
[1741447123754,0.01809559,86688.0,86687.0,0.00272539]
[1741447123962,0.01809559,86688.0,86687.0,0.12976256]
[1741447124755,0.01809559,86688.0,86687.0,0.21949756]
[1741447124962,0.0004,86719.0,86694.0,0.33697085]
[1741447125165,0.0004,86719.0,86694.0,0.49656432]
[1741447125382,0.0001698,86712.0,86694.0,0.49656432]
[1741447125587,0.0001698,86712.0,86694.0,0.79656432]
[1741447126953,0.0001698,86712.0,86694.0,0.84516432]
[1741447127139,0.0001698,86712.0,86694.0,0.84916432]
[1741447128129,0.0001698,86712.0,86694.0,0.85216432]
[1741447128332,0.0001698,86712.0,86711.0,0.242183]
[1741447128553,0.0001698,86712.0,86711.0,0.49598418]
[1741447129011,0.230601,86730.0,86717.0,0.242164]
[1741447129192,0.01153,86727.0,86718.0,0.011531]
[1741447129601,0.01153,86727.0,86719.0,0.01148118]
[1741447129807,0.01808975,86725.0,86719.0,0.01148118]
[1741447130205,0.01820533,86725.0,86719.0,0.01148118]
[1741447130986,0.01153,86724.0,86719.0,0.01148118]
[1741447131183,0.011531,86722.0,86714.0,0.011532]
[1741447131409,0.011531,86722.0,86715.0,0.01148118]
[1741447131579,0.230628,86720.0,86715.0,0.01148118]
[1741447131797,0.230628,86720.0,86711.0,0.24232]
[1741447131973,0.011531,86721.0,86716.0,0.01148118]
[1741447132178,0.011531,86721.0,86711.0,0.253852]
[1741447132179,0.01153,86723.0,86715.0,0.011532]
[1741447132364,0.242142,86726.0,86717.0,0.011531]
[1741447132564,0.01153,86724.0,86718.0,0.0114294]
[1741447132768,0.011531,86721.0,86718.0,0.0114294]
[1741447133028,0.011531,86721.0,86710.0,0.242185]
[1741447133187,0.011531,86719.0,86711.0,0.253852]
[1741447133387,0.011531,86720.0,86712.0,0.0229614]
[1741447133590,0.011531,86720.0,86712.0,0.0114294]
[1741447134010,0.011531,86719.0,86712.0,0.0114294]
[1741447134216,0.011531,86718.0,86712.0,0.0114294]
[1741447134584,0.011532,86713.0,86712.0,0.0114294]
[1741447134728,0.011531,86716.0,86713.0,0.11348]
[1741447134948,0.011531,86716.0,86704.0,0.011533]
[1741447135112,0.011531,86716.0,86714.0,0.01141073]
[1741447135321,0.011531,86716.0,86715.0,0.11348]
[1741447135660,0.011531,86716.0,86704.0,0.011533]
[1741447135661,0.011532,86712.0,86704.0,0.011533]
[1741447135878,0.011532,86712.0,86705.0,0.11348]
[1741447136180,0.011531,86716.0,86711.0,0.242182]
[1741447136181,0.0180904,86716.0,86711.0,0.242182]
[1741447136405,0.0180904,86716.0,86715.0,0.011532]
[1741447136704,0.0180904,86716.0,86715.0,0.125012]
[1741447136934,0.0180904,86716.0,86715.0,0.11348]
[1741447137637,0.0306214,86716.0,86715.0,0.11348]
[1741447138121,0.0327913,86716.0,86715.0,0.11348]
[1741447138382,0.0327913,86716.0,86705.0,0.242197]
[1741447138383,0.011533,86704.0,86696.0,0.0765]
[1741447138588,0.0212603,86716.0,86701.0,0.11348]
[1741447138589,0.011532,86712.0,86701.0,0.11348]
[1741447138793,0.011532,86711.0,86703.0,0.230672]
[1741447138999,0.011533,86707.0,86701.0,0.11348]
[1741447139228,0.011533,86706.0,86701.0,0.11348]
[1741447139404,0.230656,86710.0,86701.0,0.125013]
[1741447139405,0.02962346,86710.0,86701.0,0.125013]
[1741447139637,0.011534,86695.0,86690.0,0.0454]
[1741447139819,0.011534,86695.0,86694.0,0.26156]
[1741447140706,0.02962753,86695.0,86694.0,0.26156]
[1741447141101,0.02962753,86695.0,86694.0,0.27336188]
[1741447141307,0.02962753,86695.0,86694.0,0.27536188]
[1741447141502,0.02962753,86695.0,86694.0,0.27736188]
[1741447142536,0.02962753,86695.0,86694.0,0.27536188]
[1741447143039,0.02962753,86695.0,86694.0,0.27736188]